fUSD/lending_fUSD_20240121
["ID","MTS","AMOUNT","RATE_DAILY","PERIOD"]
[312445270,1705876627710,-847.51,0.00047671,31]
[312445271,1705876627745,-583.74,0.00047671,31]
[312445272,1705876627776,-614.24,0.00047671,31]
[312445273,1705876627809,-500.0,0.00047671,31]
[312445274,1705876627840,-500.0,0.00047671,31]
[312445275,1705876627876,-500.0,0.00047671,31]
[312445276,1705876627908,-500.0,0.00047671,31]
[312445277,1705876627942,-640.11,0.00047671,31]
[312445278,1705876627974,-640.18,0.00047671,31]
[312445279,1705876628006,-503.74,0.00047671,31]
[312445280,1705876628042,-1125.5,0.00047671,31]
[312445281,1705876628078,-500.0,0.00047671,31]
[312445282,1705876628114,-553.42,0.00047671,31]
[312445283,1705876628146,-706.24,0.00047671,31]
[312445284,1705876628179,-500.0,0.00047671,31]
[312445285,1705876628213,-759.04,0.00047671,31]
[312445286,1705876628246,-607.38138431,0.00047671,31]
[312445287,1705876628278,-618.9,0.00047671,31]
[312445288,1705876628323,-620.1,0.00047671,31]
[312445289,1705876628354,-751.8,0.00047671,31]
[312445290,1705876628386,-596.28,0.00047671,31]
[312445291,1705876628419,-791.81,0.00047671,31]
[312445292,1705876628452,-9012.61,0.00047671,31]
[312445293,1705876628489,-1020.43,0.00047671,31]
[312445294,1705876628554,-730.33,0.00047671,31]
[312445295,1705876628589,-500.0,0.00047671,31]
[312445296,1705876628623,-500.0,0.00047671,31]
[312445297,1705876628654,-856.84,0.00047671,31]
[312445298,1705876628686,-500.0,0.00047671,31]
[312445299,1705876628719,-500.0,0.00047671,31]
[312445300,1705876628751,-735.19,0.00047671,31]
[312445301,1705876628782,-500.0,0.00047671,31]
[312445302,1705876629001,-500.0,0.00047671,31]
[312445303,1705876629036,-830.88,0.00047671,31]
[312445304,1705876629070,-2377.26,0.00047671,31]
[312445305,1705876629104,-766.87,0.00047671,31]
[312445306,1705876629137,-500.0,0.00047671,31]
[312445307,1705876629169,-1112.8,0.00047671,31]
[312445308,1705876629202,-881.88,0.00047671,31]
[312445309,1705876629239,-1038.39,0.00047671,31]
[312445310,1705876629271,-641.2,0.00047671,31]
[312445311,1705876629305,-647.93,0.00047671,31]
[312445312,1705876629337,-666.36,0.00047671,31]
[312445313,1705876629371,-4639.17,0.00047671,31]
[312445314,1705876629402,-673.21,0.00047671,31]
[312445315,1705876629438,-3298.95,0.00047671,31]
[312445316,1705876629469,-992.34,0.00047671,31]
[312445317,1705876629502,-2034.53,0.00047671,31]
[312445318,1705876629534,-660.28,0.00047671,31]
[312445319,1705876629567,-500.0,0.00047671,31]
[312445320,1705876629602,-500.0,0.00047671,31]
[312445321,1705876629635,-500.0,0.00047671,31]
[312445322,1705876629669,-28036.98,0.00047671,31]
[312445323,1705876629703,-1938.75,0.00047671,31]
[312445324,1705876629733,-549.75,0.00047671,31]
[312445325,1705876629768,-903.34,0.00047671,31]
[312445326,1705876629801,-3123.65,0.00047671,31]
[312445327,1705876629833,-1216.46,0.00047671,31]
[312445328,1705876629866,-1029.32,0.00047671,31]
[312445329,1705876629897,-686.97,0.00047671,31]
[312445330,1705876629928,-1296.81,0.00047671,31]
[312445331,1705876629959,-2125.13,0.00047671,31]
[312445332,1705876629990,-1186.92,0.00047671,31]
[312445333,1705876630022,-2234.56,0.00047671,31]
[312445334,1705876630054,-1017.01,0.00047671,31]
[312445335,1705876630085,-1214.61,0.00047671,31]
[312445336,1705876630117,-500.0,0.00047671,31]
[312445337,1705876630149,-550.46,0.00047671,31]
[312445338,1705876630181,-980.04,0.00047671,31]
[312445339,1705876630212,-500.0,0.00047671,31]
[312445340,1705876630243,-764.47,0.00047671,31]
[312445341,1705876630274,-692.17,0.00047671,31]
[312445342,1705876630305,-589.26,0.00047671,31]
[312445343,1705876630337,-4050.53,0.00047671,31]
[312445344,1705876630369,-790.3,0.00047671,31]
[312445345,1705876630401,-1409.68,0.00047671,31]
[312445346,1705876630434,-884.87,0.00047671,31]
[312445347,1705876630470,-500.0,0.00047671,31]
[312445348,1705876630503,-8615.3,0.00047671,31]
[312445349,1705876630536,-650.65,0.00047671,31]
[312445350,1705876630568,-1164.14,0.00047671,31]
[312445351,1705876630602,-509.39,0.00047671,31]
[312445352,1705876630640,-500.39,0.00047671,31]
[312445353,1705876630674,-1317.68,0.00047671,31]
[312445354,1705876630706,-500.0,0.00047671,31]
[312445355,1705876630737,-773.48,0.00047671,31]
[312445356,1705876630770,-500.0,0.00047671,31]
[312445357,1705876630802,-500.0,0.00047671,31]
[312445358,1705876630836,-500.0,0.00047671,31]
[312445359,1705876630867,-500.0,0.00047671,31]
[312445360,1705876630897,-687.04,0.00047671,31]
[312445361,1705876630929,-2437.34,0.00047671,31]
[312445362,1705876630963,-500.0,0.00047671,31]
[312445363,1705876630999,-2353.8,0.00047671,31]
[312445364,1705876631035,-2671.1,0.00047671,31]
[312445365,1705876631066,-1627.9,0.00047671,31]
[312445366,1705876631097,-500.0,0.00047671,31]
[312445367,1705876631131,-701.03,0.00047671,31]
[312445368,1705876631164,-744.64,0.00047671,31]
[312445369,1705876631195,-722.25,0.00047671,31]
[312445370,1705876631227,-1057.32,0.00047671,31]
[312445371,1705876631258,-2605.29,0.00047671,31]
[312445372,1705876631290,-500.0,0.00047671,31]
[312445373,1705876631322,-1869.91,0.00047671,31]
[312445374,1705876631354,-853.42,0.00047671,31]
[312445375,1705876631386,-628.07,0.00047671,31]
[312445376,1705876631419,-500.0,0.00047671,31]
[312445377,1705876631450,-500.0,0.00047671,31]
[312445378,1705876631481,-1463.45,0.00047671,31]
[312445379,1705876631512,-500.0,0.00047671,31]
[312445380,1705876631542,-738.08,0.00047671,31]
[312445381,1705876631576,-1856.37,0.00047671,31]
[312445382,1705876631607,-2717.95,0.00047671,31]
[312445383,1705876631638,-500.0,0.00047671,31]
[312445384,1705876631669,-671.9,0.00047671,31]
[312445385,1705876631700,-391.68833791,0.00047671,31]
[312445386,1705876631731,-3818.85,0.00047671,31]
[312445387,1705876631762,-576.78,0.00047671,31]
[312445388,1705876631792,-685.5,0.00047671,31]
[312445389,1705876631822,-782.28,0.00047671,31]
[312445390,1705876631853,-1834.73,0.00047671,31]
[312445391,1705876631889,-801.69,0.00047671,31]
[312445392,1705876631920,-7874.08,0.00047671,31]
[312445393,1705876631952,-508.28,0.00047671,31]
[312445394,1705876631983,-1665.66,0.00047671,31]
[312445395,1705876632014,-1435.39,0.00047671,31]
[312445396,1705876632050,-500.0,0.00047671,31]
[312445397,1705876632085,-3052.12,0.00047671,31]
[312445398,1705876632120,-1882.97,0.00047671,31]
[312445399,1705876632154,-500.0,0.00047671,31]
[312445400,1705876632186,-1653.87,0.00047671,31]
[312445401,1705876632219,-670.83,0.00047671,31]
[312445402,1705876632251,-500.0,0.00047671,31]
[312445403,1705876632282,-705.2,0.00047671,31]
[312445404,1705876632316,-782.76,0.00047671,31]
[312445405,1705876632348,-500.0,0.00047671,31]
[312445406,1705876632540,-500.0,0.00047671,31]
[312445407,1705876632573,-794.26,0.00047671,31]
[312445408,1705876632606,-711.05,0.00047671,31]
[312445409,1705876632638,-413.41079762,0.00047671,31]
[312445410,1705876632669,-1594.26,0.00047671,31]
[312445411,1705876632701,-3948.71,0.00047671,31]
[312445412,1705876632732,-1147.94,0.00047671,31]
[312445413,1705876632764,-500.0,0.00047671,31]
[312445414,1705876632795,-2653.24,0.00047671,31]
[312445415,1705876632831,-1622.79,0.00047671,31]
[312445416,1705876632870,-887.82,0.00047671,31]
[312445417,1705876632904,-2192.06,0.00047671,31]
[312445418,1705876632936,-500.19,0.00047671,31]
[312445419,1705876632969,-4489.98,0.00047671,31]
[312445420,1705876633001,-981.16,0.00047671,31]
[312445421,1705876633034,-500.0,0.00047671,31]
[312445422,1705876633066,-500.0,0.00047671,31]
[312445423,1705876633099,-455.03644504,0.00047671,31]
[312445424,1705876633133,-500.0,0.00047671,31]
[312445425,1705876633166,-2135.06,0.00047671,31]
[312445426,1705876633199,-529.53,0.00047671,31]
[312445427,1705876633231,-524.77,0.00047671,31]
[312445428,1705876633263,-863.57,0.00047671,31]
[312445429,1705876633295,-1015.89,0.00047671,31]
[312445430,1705876633329,-528.03,0.00047671,31]
[312445431,1705876633363,-2514.68,0.00047671,31]
[312445432,1705876633397,-748.59,0.00047671,31]
[312445433,1705876633429,-1005.16,0.00047671,31]
[312445434,1705876633462,-204.0,0.00047677,31]
[312445435,1705876633495,-719.80849234,0.0004768,120]
[312445436,1705876633527,-257.0,0.000477,30]
[312445437,1705876633560,-204.0,0.0004772,30]
[312445438,1705876633591,-203.0,0.0004772,30]
[312445439,1705876633623,-400.0,0.0004789,120]
[312445440,1705876633654,-5691.867431,0.00047945,120]
[312445441,1705876633685,-2003.145189,0.00047945,120]
[312445442,1705876633716,-1791.420388,0.00047945,120]
[312445443,1705876633749,-3320.170384,0.00047945,120]
[312445444,1705876633782,-1791.420388,0.00047945,120]
[312445445,1705876633815,-556.812905,0.00047945,120]
[312445446,1705876633847,-187.0,0.00047955,90]
[312445447,1705876633881,-200.0,0.00047987,54]
[312445448,1705876633917,-1000.0,0.00047999,120]
[312445449,1705876633949,-4557.18527,0.00048,30]
[312445450,1705876633984,-300.0,0.00048,49]
[312445451,1705876634017,-1340.21111135,0.00048,120]
[312445452,1705876634062,-500.0,0.00048,120]
[312445453,1705876634095,-367.0,0.00048,120]
[312445454,1705876634126,-250.0,0.00048,60]
[312445455,1705876634158,-75340.33966033,0.00048,120]
[312445710,1705877432317,-208.84827579,0.000249,2]
[312445711,1705877432326,-202.72914679,0.00024999,2]
[312445712,1705877432336,-167.16518261,0.00025,2]
[312445713,1705877432347,-150.0,0.00027397,2]
[312445714,1705877432357,-150.0,0.00029999,2]
[312445715,1705877432367,-155.0,0.0003,2]
[312445716,1705877432376,-155.0,0.0003,2]
[312445717,1705877432385,-155.0,0.0003,2]
[312445718,1705877432394,-155.0,0.0003,2]
[312445720,1705877432403,-155.0,0.0003,2]
[312445722,1705877432411,-155.0,0.0003,2]
[312445724,1705877432421,-155.0,0.0003,2]
[312445726,1705877432430,-2359.04794661,0.0003,2]
[312445728,1705877432439,-155.0,0.0003,2]
[312445730,1705877432448,-204.0,0.00032355,2]
[312445732,1705877432457,-208.84827578,0.00032698,2]
[312445734,1705877432466,-174.15786168,0.00032798,2]
[312445735,1705877432475,-19285.1482,0.00032798,2]
[312445736,1705877432484,-150.0,0.00032877,2]
[312445737,1705877432504,-400.57,0.00032898,2]
[312445738,1705877432517,-499.99,0.00032898,2]
[312445739,1705877432526,-999.99,0.00032898,2]
[312445740,1705877432536,-201.0,0.00032999,3]
[312445741,1705877432545,-189.79,0.00033078,2]
[312445742,1705877432554,-322.05,0.00034,15]
[312445743,1705877432563,-298.44,0.00034,2]
[312445744,1705877432573,-500.0,0.00034,2]
[312445745,1705877432582,-500.0,0.00034,2]
[312445746,1705877432591,-500.0,0.00034,2]
[312445747,1705877432599,-1000.0,0.00034,4]
[312445748,1705877432608,-500.0,0.00034,2]
[312445749,1705877432617,-1000.0,0.00034,4]
[312445750,1705877432627,-500.0,0.00034,2]
[312445751,1705877432636,-1000.0,0.00034,4]
[312445752,1705877432646,-1000.0,0.00034,4]
[312445753,1705877432654,-500.0,0.00034,2]
[312445754,1705877432663,-1000.0,0.00034,4]
[312445755,1705877432672,-500.0,0.00034,2]
[312445756,1705877432681,-1000.0,0.00034,4]
[312445757,1705877432690,-500.0,0.00034,2]
[312445758,1705877432700,-1000.0,0.00034,4]
[312445759,1705877432709,-500.0,0.00034,2]
[312445760,1705877432718,-1000.0,0.00034,4]
[312445761,1705877432727,-1000.0,0.00034,4]
[312445762,1705877432735,-3541.42,0.00034559,2]
[312445763,1705877432745,-301.58,0.00034609,2]
[312445764,1705877432753,-250.0,0.00034878,111]
[312445765,1705877432762,-500.0,0.00034907,2]
[312445766,1705877432771,-1000.0,0.00034936,2]
[312445767,1705877432780,-287.28,0.00035073,2]
[312445768,1705877432789,-2000.0,0.00035117,2]
[312445769,1705877432800,-160.96,0.00035136,2]
[312445770,1705877432809,-189.79,0.00035342,2]
[312445771,1705877432818,-492.02,0.00035452,15]
[312445772,1705877432827,-250.0,0.00035458,2]
[312445773,1705877432837,-190.52,0.00035477,2]
[312445774,1705877432848,-152.66,0.000357,3]
[312445775,1705877432859,-207.66,0.000357,3]
[312445776,1705877432868,-207.66,0.000357,3]
[312445777,1705877432879,-207.66,0.000357,3]
[312445778,1705877432887,-207.66,0.000357,3]
[312445779,1705877432897,-207.66,0.000357,3]
[312445780,1705877432907,-207.66,0.000357,3]
[312445781,1705877432917,-207.66,0.000357,3]
[312445782,1705877432927,-207.66,0.000357,3]
[312445783,1705877432937,-207.66,0.000357,3]
[312445784,1705877432946,-207.66,0.000357,3]
[312445785,1705877432957,-207.66,0.000357,3]
[312445786,1705877432967,-207.66,0.000357,3]
[312445787,1705877432978,-207.66,0.000357,3]
[312445788,1705877432988,-207.66,0.000357,3]
[312445789,1705877432997,-207.66,0.000357,3]
[312445790,1705877433006,-207.66,0.000357,3]
[312445791,1705877433014,-207.66,0.000357,3]
[312445792,1705877433023,-207.66,0.000357,3]
[312445793,1705877433032,-207.66,0.000357,3]
[312445794,1705877433041,-207.66,0.000357,3]
[312445795,1705877433050,-301.58,0.00036253,2]
[312445796,1705877433059,-1377.3390751,0.00036984,2]
[312445797,1705877433067,-435.21804576,0.00036999,4]
[312445798,1705877433077,-100000.0,0.00037,7]
[312445799,1705877433086,-1233.5188064,0.00037011,4]
[312445800,1705877433095,-7277.08931614,0.00037012,4]
[312445801,1705877433106,-8610.4405835,0.00037013,11]
[312445802,1705877433115,-189.79,0.00037606,2]
[312445803,1705877433123,-1311.92773935,0.00037633,11]
[312445804,1705877433133,-301.58,0.00037896,2]
[312445805,1705877433144,-100000.0,0.00038,8]
[312445806,1705877433153,-3137.0,0.00038,2]
[312445807,1705877433162,-153.84,0.0003879,2]
[312445808,1705877433171,-152.66,0.000388,3]
[312445809,1705877433181,-152.66,0.000388,3]
[312445810,1705877433191,-207.66,0.000388,3]
[312445811,1705877433202,-207.66,0.000388,3]
[312445812,1705877433211,-207.66,0.000388,3]
[312445813,1705877433222,-207.66,0.000388,3]
[312445814,1705877433231,-207.66,0.000388,3]
[312445815,1705877433241,-207.66,0.000388,3]
[312445816,1705877433250,-207.66,0.000388,3]
[312445817,1705877433259,-207.66,0.000388,3]
[312445818,1705877433272,-207.66,0.000388,3]
[312445819,1705877433283,-207.66,0.000388,3]
[312445820,1705877433293,-207.66,0.000388,3]
[312445821,1705877433303,-207.66,0.000388,3]
[312445822,1705877433312,-207.66,0.000388,3]
[312445823,1705877433322,-207.66,0.000388,3]
[312445824,1705877433331,-207.66,0.000388,3]
[312445825,1705877433341,-207.66,0.000388,3]
[312445826,1705877433351,-207.66,0.000388,3]
[312445827,1705877433361,-207.66,0.000388,3]
[312445828,1705877433370,-207.66,0.000388,3]
[312445829,1705877433379,-207.66,0.000388,3]
[312445830,1705877433389,-25967.1185846,0.0003899,10]
[312445831,1705877433397,-100000.0,0.00039,9]
[312445832,1705877433407,-1428.71461591,0.00039,2]
[312445833,1705877433417,-492.02,0.00039188,15]
[312445834,1705877433426,-156.72,0.00039236,2]
[312445835,1705877433435,-204.0,0.00039266,16]
[312445836,1705877433445,-200.0,0.00039282,7]
[312445837,1705877433455,-1000.0,0.00039303,2]
[312445838,1705877433469,-800.0,0.00039486,5]
[312445839,1705877433478,-301.58,0.0003954,2]
[312445840,1705877433488,-1076.69259429,0.0003961,7]
[312445841,1705877433506,-189.79,0.0003987,2]
[312445842,1705877433519,-5193.42371691,0.0003998,10]
[312445843,1705877433530,-46740.8134522,0.0003999,10]
[312445844,1705877433539,-5193.42371691,0.0003999,10]
[312445845,1705877433548,-100000.0,0.0004,10]
[312445846,1705877433557,-500.0,0.0004,4]
[312445847,1705877433566,-6238.76493014,0.0004,4]
[312445848,1705877433575,-350.0,0.0004,120]
[312445849,1705877433584,-400.0,0.0004,120]
[312445850,1705877433593,-5000.0,0.0004,15]
[312445851,1705877433602,-161.55,0.00040106,2]
[312445852,1705877433611,-200.0,0.00040124,7]
[312445853,1705877433620,-800.0,0.00040124,5]
[312445854,1705877433629,-216.2187508,0.00040183,2]
[312445855,1705877433638,-216.2187508,0.00040455,2]
[312445856,1705877433647,-255.0,0.00040606,12]
[312445857,1705877433655,-5193.42371691,0.00040672,11]
[312445858,1705877433664,-3778.24244306,0.00040682,7]
[312445859,1705877433673,-175.53477605,0.00040682,4]
[312445860,1705877433691,-738.54219566,0.000407,2]
[312445861,1705877433701,-216.2187508,0.00040728,2]
[312445862,1705877433709,-200.0,0.00040761,7]
[312445863,1705877433718,-800.0,0.00040761,5]
[312445864,1705877433727,-500.0,0.00040762,2]
[312445865,1705877433737,-1053.15235778,0.0004081,3]
[312445866,1705877433746,-250.0,0.00040895,120]
[312445867,1705877433756,-3008.6825,0.000409,2]
[312445868,1705877433766,-151.81777713,0.000409,10]
[312445869,1705877433776,-397.28085796,0.000409,15]
[312445870,1705877433785,-50716.21565522,0.00040955,6]
[312445871,1705877433799,-56731.65412678,0.00040955,6]
[312445872,1705877433810,-46740.8134522,0.00040965,11]
[312445873,1705877433821,-1490.95096685,0.0004097,11]
[312445876,1705877438113,-785.2873475,0.0003699,10]
[312445898,1705877441298,-715.28811978,0.0003699,10]
[312445899,1705877441427,-80.13453272,0.0003699,10]
[312445900,1705877441437,-2349.86546728,0.0004097,11]
[312445901,1705877441448,-603.96565913,0.0004097,11]
[312446077,1705877443235,-250.0,0.00040083,2]
[312446079,1705877443244,-261.76244918,0.000409,16]
[312446081,1705877443253,-748.64162365,0.0004097,11]
[312446083,1705877443262,-1633.28599562,0.00040975,11]
[312446088,1705877443295,-835.04991627,0.00040975,11]
[312446090,1705877443306,-378.37423444,0.00040975,11]
[312446098,1705877443378,-85441.49304117,0.00040975,11]
[312446100,1705877443387,-500.0,0.0004098,2]
[312446102,1705877443396,-1000.0,0.0004098,15]
[312446104,1705877443406,-39755.42483369,0.00040985,6]
[312446106,1705877443417,-1248.42830021,0.00040985,6]
[312446110,1705877443437,-2566.53199256,0.00040985,6]
[312446113,1705877443459,-452.57449115,0.00040985,6]
[312446115,1705877443470,-11042.60065063,0.00040985,6]
[312446117,1705877443481,-5044.89999996,0.00040985,6]
[312446269,1705877446106,-1370.19300514,0.00039,2]
[312446270,1705877446201,-58.52161077,0.00039,2]
[312446271,1705877446210,-2696.05479612,0.00040969,2]
[312446272,1705877446219,-155.0,0.00040974,2]
[312446273,1705877446228,-2604.68308022,0.00040985,6]
[312446274,1705877446239,-325.95661418,0.00040985,6]
[312446275,1705877446259,-2737.23526608,0.00040985,6]
[312446276,1705877446274,-4165.1,0.00040985,6]
[312446277,1705877446285,-663.74904689,0.00040985,6]
[312446278,1705877446297,-2630.08903249,0.00040985,6]
[312446279,1705877446324,-495.71718931,0.00040985,6]
[312446280,1705877446339,-1033.05017563,0.00040985,6]
[312446281,1705877446351,-304.84667716,0.00040985,6]
[312446282,1705877446363,-19695.0928525,0.00040985,6]
[312446283,1705877446394,-5229.38594793,0.00040985,6]
[312446284,1705877446405,-432.5,0.00040985,6]
[312446285,1705877446417,-4237.15714331,0.00040985,6]
[312446300,1705877644749,826.779999,0.0002,2]
[312446423,1705878633663,-1110.80224,0.00021982,2]
[312446424,1705878633676,-607.24280169,0.00021982,2]
[312446425,1705878633698,-1381.14495831,0.00021982,2]
[312446426,1705878633708,-738.54219566,0.000225,2]
[312446427,1705878633717,-381.0,0.00022542,2]
[312446428,1705878633726,-202.72914679,0.00022899,2]
[312446429,1705878633736,-796.58724775,0.00022899,2]
[312446430,1705878633756,-2992.2494027,0.00022899,2]
[312446431,1705878633767,-323.26186872,0.00022899,2]
[312446432,1705878633779,-280.378098,0.00022899,2]
[312446433,1705878633802,-2386.00770124,0.00022899,2]
[312446434,1705878633813,-156.87949161,0.000229,2]
[312446435,1705878633822,-810.68524477,0.000229,2]
[312446436,1705878633834,-656.2160223,0.000229,2]
[312446437,1705878633922,-724.46528042,0.000229,2]
[312446438,1705878633934,-426.947536,0.000229,2]
[312446439,1705878633946,-530.26541467,0.000229,2]
[312446440,1705878633958,-400.08481297,0.000229,2]
[312446441,1705878633978,-255.97559429,0.000229,2]
[312446458,1705878638313,-1588.43857689,0.000229,2]
[312446459,1705878638325,-898.15354925,0.000229,2]
[312446460,1705878638336,-367.06866657,0.000229,2]
[312446461,1705878638375,-4000.0,0.000229,2]
[312446462,1705878638427,-90146.26930187,0.000229,2]
[312446463,1705878638437,-151.81777713,0.00022975,2]
[312446464,1705878638446,-302.59252763,0.00022975,2]
[312446465,1705878638455,-397.28085796,0.00022975,2]
[312446466,1705878638464,-478.66404611,0.00022975,2]
[312446467,1705878638473,-1167.38473923,0.00022975,2]
[312446468,1705878638482,-523.52489832,0.00022975,2]
[312446469,1705878638491,-150.0,0.00022999,2]
[312446470,1705878638501,-150.0,0.00022999,2]
[312446471,1705878638510,-3467242.91790243,0.00023,2]
[312446761,1705878641435,-599.86224082,0.00023,2]
[312446762,1705878641446,-94161.57245203,0.00023,2]
[312446763,1705878641546,-373.20363653,0.00023,2]
[312446770,1705878643359,-14002.82976422,0.00023,2]
[312446771,1705878643592,-20923.898577,0.00023,2]
[312446825,1705878656258,361.28571623,0.0002,2]
[312446826,1705878659754,284.34145769,0.0002,2]
[312446827,1705878679740,283.80112008,0.0002,2]
[312446828,1705878690251,481.43760929,0.0002,2]
[312446836,1705879503289,269.65,0.00021034,2]
[312446837,1705879563298,200.98286647,0.00020929,2]
[312446842,1705879831462,-640.98672292,0.00022078,2]
[312446844,1705879831472,-1377.82247059,0.00022304,2]
[312446847,1705879831481,-613.19425623,0.00022307,2]
[312446849,1705879831493,-1816.01165128,0.00022307,2]
[312446851,1705879831505,-357.41463841,0.00022307,2]
[312446853,1705879831517,-1616.82159348,0.00022307,2]
[312446854,1705879831571,-1000.0,0.00022307,2]
[312446855,1705879831733,-1375.04217901,0.00022307,2]
[312446856,1705879831743,-2475.29256209,0.00022308,2]
[312446857,1705879831752,-400.0,0.00022503,2]
[312446858,1705879831761,-435.88,0.00022523,2]
[312446859,1705879831771,-500.0,0.00022698,2]
[312446860,1705879831780,-547.54,0.0002272,2]
[312446861,1705879831790,-7547.49448585,0.0002277,2]
[312446862,1705879831801,-300.0,0.000228,2]
[312446864,1705879831811,-1233.5188064,0.00022898,2]
[312446865,1705879831820,-435.21804576,0.00022899,2]
[312446866,1705879831830,-5333.50586608,0.000229,2]
[312446867,1705879831845,-1251.47,0.000229,2]
[312446892,1705879837504,-40974.32477293,0.000229,2]
[312446893,1705879837516,-4729.50676099,0.000229,2]
[312446894,1705879837526,-499.99,0.000229,2]
[312446895,1705879837536,-474.01418601,0.00022914,2]
[312446896,1705879837544,-717.93645609,0.00022914,2]
[312446897,1705879837553,-216.21875089,0.00022914,2]
[312446898,1705879837562,-188.59454842,0.00022935,2]
[312446899,1705879837571,-250.0,0.00022954,2]
[312446900,1705879837580,-263.49556138,0.0002299,2]
[312446901,1705879837590,-600.0,0.00022994,2]
[312446902,1705879837599,-171.72993074,0.00022998,2]
[312446903,1705879837608,-4147.38163494,0.00022998,2]
[312446904,1705879837618,-238.17470059,0.00022998,2]
[312446905,1705879837627,-1581.20363332,0.00022999,2]
[312446906,1705879837636,-9991.75383653,0.00023,2]
[312446907,1705879837765,-1008.0,0.00023,2]
[312446908,1705879837776,-1058.031975,0.00023,2]
[312446909,1705879837809,-2190.92784399,0.00023,2]
[312446910,1705879837919,-4242.55195964,0.00023,2]
[312446911,1705879837931,-2347.59359163,0.00023,2]
[312446912,1705879837942,-1251.75,0.00023,2]
[312446913,1705879837974,-20528.85935465,0.00023,2]
[312446914,1705879837984,-22745.0,0.00023,2]
[312446915,1705879837999,-2264.87233777,0.00023,2]
[312446919,1705879838022,-686.01025,0.00023,2]
[312447007,1705879839954,-463.38494082,0.00023,2]
[312447008,1705879840886,-21335.43729165,0.00023,2]
[312447009,1705879840903,-416.87565627,0.00023,2]
[312447010,1705879840914,-713.86449252,0.00023,2]
[312447011,1705879840926,-615.05630838,0.00023,2]
[312447012,1705879840937,-1075.97623632,0.00023,2]
[312447013,1705879840961,-87250.0,0.00023,2]
[312447014,1705879841074,-10614.8553381,0.00023,2]
[312447015,1705879841086,-5437.69,0.00023,2]
[312447016,1705879841113,-2161.75108759,0.00023,2]
[312447017,1705879841124,-1276.8556622,0.00023,2]
[312447018,1705879841136,-936.09615582,0.00023,2]
[312447019,1705879841155,-276.06384321,0.00023,2]
[312447020,1705879841627,-2155.38648497,0.00023,2]
[312447021,1705879841640,-502.75067572,0.00023,2]
[312447022,1705879841651,-114458.42754775,0.00023,2]
[312447023,1705879841663,-504.29789126,0.00023,2]
[312447040,1705879842525,-701.666667,0.00023,2]
[312447041,1705879842537,-679.24139272,0.00023,2]
[312447042,1705879842549,-312.51759812,0.00023,2]
[312447043,1705879842560,-48863.422,0.00023,2]
[312447044,1705879842571,-26634.97072718,0.00023,2]
[312447045,1705879842583,-933.52776924,0.00023,2]
[312447046,1705879842606,-6357.6390074,0.00023,2]
[312447047,1705879842617,-983.39322248,0.00023,2]
[312447048,1705879842628,-1034.02164183,0.00023,2]
[312447049,1705879842648,-493.84803407,0.00023,2]
[312447050,1705879842660,-2160.0,0.00023,2]
[312447051,1705879842697,-339674.97702915,0.00023,2]
[312447052,1705879842709,-8196.65999952,0.00023,2]
[312447053,1705879842754,-260.2328434,0.00023,2]
[312447054,1705879842767,-12334.13332736,0.00023,2]